[Event "Live Chess"]
[Site "Chess.com"]
[Date "2024.06.02"]
[Round "-"]
[White "CheckThis4"]
[Black "peteopeteo"]
[Result "1-0"]
[WhiteElo "2676"]
[BlackElo "1546"]
[TimeControl "300"]
[EndTime "8:04:13 PDT"]
[Termination "CheckThis4 won by resignation"]

1. d4 {[%clk 0:04:59.2]} 1... d5 {[%clk 0:04:57.6]} 2. Nc3 {[%clk 0:04:59.1]}
2... Nf6 {[%clk 0:04:56.5]} 3. e4 {[%clk 0:04:59]} 3... dxe4 {[%clk 0:04:54.6]}
4. f3 {[%clk 0:04:58.4]} 4... e5 {[%clk 0:04:49.1]} 5. dxe5 {[%clk 0:04:56.1]}
5... Qxd1+ {[%clk 0:04:48.1]} 6. Kxd1 {[%clk 0:04:47.8]} 6... Nfd7 {[%clk
0:04:42.2]} 7. Nd5 {[%clk 0:04:46.1]} 7... Kd8 {[%clk 0:04:32]} 8. Bg5+ {[%clk
0:04:42.8]} 8... f6 {[%clk 0:04:29.9]} 9. exf6 {[%clk 0:04:41.2]} 9... gxf6
{[%clk 0:04:16.2]} 10. Nxf6 {[%clk 0:04:37.8]} 10... Be7 {[%clk 0:04:13.4]} 11.
Nxe4 {[%clk 0:04:36.5]} 11... Bxg5 {[%clk 0:04:03.9]} 12. Nxg5 {[%clk
0:04:36.4]} 12... Ke8 {[%clk 0:03:51.3]} 13. Ne6 {[%clk 0:04:33.2]} 13... Na6
{[%clk 0:03:23.3]} 14. Bxa6 {[%clk 0:04:30.1]} 14... bxa6 {[%clk 0:03:23.2]} 15.
Nxc7+ {[%clk 0:04:28.8]} 15... Kd8 {[%clk 0:03:20]} 16. Nxa8 {[%clk 0:04:28.7]}
16... Bb7 {[%clk 0:03:19]} 17. Ne2 {[%clk 0:04:24.6]} 17... Bxa8 {[%clk
0:03:13.8]} 18. Kc1 {[%clk 0:04:23.8]} 18... Re8 {[%clk 0:02:54.6]} 19. Ng3
{[%clk 0:04:18.7]} 19... Bd5 {[%clk 0:02:48.6]} 20. b3 {[%clk 0:04:16.3]} 20...
Nc5 {[%clk 0:02:43.4]} 21. Kb2 {[%clk 0:04:14]} 21... Rg8 {[%clk 0:02:39.7]} 22.
Rad1 {[%clk 0:04:11.7]} 22... Rg5 {[%clk 0:02:35.8]} 23. Ne4 {[%clk 0:04:10.3]}
23... Nxe4 {[%clk 0:02:31.7]} 24. fxe4 {[%clk 0:04:10.2]} 24... Rxg2 {[%clk
0:02:29.5]} 25. Rxd5+ {[%clk 0:04:08.3]} 25... Ke7 {[%clk 0:02:28.9]} 26. Rhd1
{[%clk 0:04:06.5]} 26... Ke6 {[%clk 0:02:18.8]} 27. Rd6+ {[%clk 0:04:05.1]}
27... Ke5 {[%clk 0:02:17.8]} 28. Rxa6 {[%clk 0:04:04.6]} 28... Kxe4 {[%clk
0:02:16.6]} 29. Rxa7 {[%clk 0:04:03.8]} 29... h5 {[%clk 0:02:15.4]} 30. Re7+
{[%clk 0:04:02.3]} 30... Kf4 {[%clk 0:02:14.5]} 31. a4 {[%clk 0:04:01.9]} 31...
Rxh2 {[%clk 0:02:12.2]} 32. a5 {[%clk 0:04:01.1]} 32... h4 {[%clk 0:02:10.1]}
33. a6 {[%clk 0:04:00.5]} 33... Re2 {[%clk 0:02:08.6]} 34. Rxe2 {[%clk
0:03:58.1]} 1-0

[Event "Live Chess"]
[Site "Chess.com"]
[Date "2024.06.02"]
[Round "-"]
[White "HoarseyHorsey"]
[Black "juniortay"]
[Result "1-0"]
[WhiteElo "1589"]
[BlackElo "2269"]
[TimeControl "300"]
[EndTime "8:04:19 PDT"]
[Termination "HoarseyHorsey won by resignation"]

1. d4 {[%clk 0:04:57.5]} 1... Nf6 {[%clk 0:04:58.3]} 2. c4 {[%clk 0:04:56.3]}
2... g6 {[%clk 0:04:57.1]} 3. Nc3 {[%clk 0:04:55]} 3... Bg7 {[%clk 0:04:57]} 4.
Bg5 {[%clk 0:04:52.7]} 4... d6 {[%clk 0:04:56.8]} 5. e3 {[%clk 0:04:50]} 5...
O-O {[%clk 0:04:55.5]} 6. Qc2 {[%clk 0:04:48.7]} 6... c6 {[%clk 0:04:53.3]} 7.
Be2 {[%clk 0:04:47.6]} 7... a6 {[%clk 0:04:51.1]} 8. Nf3 {[%clk 0:04:46.3]} 8...
b5 {[%clk 0:04:49.9]} 9. cxb5 {[%clk 0:04:44.8]} 9... axb5 {[%clk 0:04:48.3]}
10. O-O {[%clk 0:04:43.7]} 10... b4 {[%clk 0:04:46.8]} 11. Ne4 {[%clk
0:04:42.5]} 11... Bf5 {[%clk 0:04:41.2]} 12. Nxf6+ {[%clk 0:04:40]} 12... exf6
{[%clk 0:04:39.6]} 13. Bd3 {[%clk 0:04:36.6]} 13... Bxd3 {[%clk 0:04:37.9]} 14.
Qxd3 {[%clk 0:04:36.3]} 14... fxg5 {[%clk 0:04:36.3]} 15. e4 {[%clk 0:04:35.1]}
15... c5 {[%clk 0:04:32.4]} 16. dxc5 {[%clk 0:04:33.6]} 16... dxc5 {[%clk
0:04:30.6]} 17. Qc4 {[%clk 0:04:32.7]} 17... Qe7 {[%clk 0:04:22.2]} 18. Rad1
{[%clk 0:04:31.2]} 18... Nd7 {[%clk 0:04:01.8]} 19. Rfe1 {[%clk 0:04:18.6]}
19... Ne5 {[%clk 0:03:58]} 20. Nxe5 {[%clk 0:04:17.2]} 20... Bxe5 {[%clk
0:03:56.6]} 21. Rd5 {[%clk 0:04:11.8]} 21... Bd4 {[%clk 0:03:53.4]} 22. e5
{[%clk 0:04:08.9]} 22... Rad8 {[%clk 0:03:47.9]} 23. b3 {[%clk 0:03:58.5]} 23...
Qf6 {[%clk 0:03:44.1]} 24. exf6 {[%clk 0:03:52.8]} 1-0

[Event "Live Chess"]
[Site "Chess.com"]
[Date "2024.06.02"]
[Round "-"]
[White "JanMur7"]
[Black "Queensandpawns"]
[Result "1-0"]
[WhiteElo "2290"]
[BlackElo "2249"]
[TimeControl "300"]
[EndTime "8:04:19 PDT"]
[Termination "JanMur7 won by resignation"]

1. e4 {[%clk 0:04:57.8]} 1... e5 {[%clk 0:04:56.5]} 2. Nf3 {[%clk 0:04:56.4]}
2... Nf6 {[%clk 0:04:56.4]} 3. Nc3 {[%clk 0:04:55]} 3... Nc6 {[%clk 0:04:56.3]}
4. Bc4 {[%clk 0:04:54]} 4... Bc5 {[%clk 0:04:55.5]} 5. d3 {[%clk 0:04:52.5]}
5... h6 {[%clk 0:04:54.9]} 6. h3 {[%clk 0:04:49.7]} 6... O-O {[%clk 0:04:54.4]}
7. g4 {[%clk 0:04:47.9]} 7... a6 {[%clk 0:04:46]} 8. g5 {[%clk 0:04:46.1]} 8...
hxg5 {[%clk 0:04:41.3]} 9. Bxg5 {[%clk 0:04:46]} 9... b5 {[%clk 0:04:41.2]} 10.
Bb3 {[%clk 0:04:44.3]} 10... Nd4 {[%clk 0:04:36.1]} 11. Nxd4 {[%clk 0:04:40.8]}
11... exd4 {[%clk 0:04:33.9]} 12. Nd5 {[%clk 0:04:37.8]} 12... Be7 {[%clk
0:04:25.8]} 13. Nxe7+ {[%clk 0:04:36.1]} 13... Qxe7 {[%clk 0:04:25.7]} 14. Rg1
{[%clk 0:04:33.5]} 14... Qe5 {[%clk 0:04:21.9]} 15. Qf3 {[%clk 0:04:28.4]} 15...
Nh7 {[%clk 0:04:14.7]} 16. Bh6 {[%clk 0:04:19.7]} 16... g6 {[%clk 0:03:44.5]}
17. Bxf8 {[%clk 0:04:15.5]} 17... Nxf8 {[%clk 0:03:44.4]} 18. Qxf7+ {[%clk
0:04:13.6]} 1-0

[Event "Live Chess"]
[Site "Chess.com"]
[Date "2024.06.02"]
[Round "-"]
[White "Andysav3"]
[Black "ProfPoisson"]
[Result "1-0"]
[WhiteElo "1881"]
[BlackElo "1352"]
[TimeControl "300"]
[EndTime "8:04:22 PDT"]
[Termination "Andysav3 won by resignation"]

1. e4 {[%clk 0:04:56.5]} 1... e5 {[%clk 0:04:58]} 2. Nf3 {[%clk 0:04:54.7]} 2...
Nf6 {[%clk 0:04:56.6]} 3. d4 {[%clk 0:04:51.9]} 3... Nxe4 {[%clk 0:04:55.1]} 4.
Nxe5 {[%clk 0:04:48.1]} 4... d5 {[%clk 0:04:53.7]} 5. Bd3 {[%clk 0:04:43.3]}
5... Nd7 {[%clk 0:04:51.6]} 6. O-O {[%clk 0:04:33.4]} 6... Nxe5 {[%clk
0:04:49.1]} 7. dxe5 {[%clk 0:04:32.3]} 7... Bc5 {[%clk 0:04:39.9]} 8. Bxe4
{[%clk 0:04:27.7]} 8... dxe4 {[%clk 0:04:35.5]} 9. Qxd8+ {[%clk 0:04:26.3]} 9...
Kxd8 {[%clk 0:04:35]} 10. Nc3 {[%clk 0:04:25.5]} 10... Re8 {[%clk 0:04:29.4]}
11. Bg5+ {[%clk 0:04:13.7]} 11... Be7 {[%clk 0:04:22]} 12. Nxe4 {[%clk
0:04:09.1]} 12... Bxg5 {[%clk 0:04:17.2]} 13. Nxg5 {[%clk 0:04:07.6]} 13... Bf5
{[%clk 0:04:04.8]} 14. c3 {[%clk 0:03:54.2]} 14... f6 {[%clk 0:04:00.6]} 15.
exf6 {[%clk 0:03:49.2]} 15... gxf6 {[%clk 0:03:58.5]} 16. Rad1+ {[%clk
0:03:44.6]} 16... Kc8 {[%clk 0:03:45.5]} 17. Nf3 {[%clk 0:03:35.4]} 17... Re2
{[%clk 0:03:42.4]} 18. Nd4 {[%clk 0:03:27]} 18... Rxb2 {[%clk 0:03:26.8]} 19.
Nxf5 {[%clk 0:03:25.4]} 19... Rxa2 {[%clk 0:03:25.4]} 20. Ne7+ {[%clk
0:03:23.6]} 1-0

[Event "Live Chess"]
[Site "Chess.com"]
[Date "2024.06.02"]
[Round "-"]
[White "Inglaterra"]
[Black "Ferrarifan27"]
[Result "1-0"]
[WhiteElo "2064"]
[BlackElo "2145"]
[TimeControl "300"]
[EndTime "8:04:27 PDT"]
[Termination "Inglaterra won on time"]

1. e4 {[%clk 0:04:57.3]} 1... e5 {[%clk 0:04:57.3]} 2. Nf3 {[%clk 0:04:56]} 2...
Nc6 {[%clk 0:04:56.1]} 3. Bb5 {[%clk 0:04:52.8]} 3... a6 {[%clk 0:04:55.1]} 4.
Ba4 {[%clk 0:04:51.7]} 4... Nf6 {[%clk 0:04:53.3]} 5. O-O {[%clk 0:04:50.4]}
5... Be7 {[%clk 0:04:49.2]} 6. Re1 {[%clk 0:04:49.1]} 6... b5 {[%clk 0:04:47.3]}
7. Bb3 {[%clk 0:04:48.5]} 7... O-O {[%clk 0:04:46.1]} 8. h3 {[%clk 0:04:43.9]}
8... d6 {[%clk 0:04:45.1]} 9. c3 {[%clk 0:04:42.2]} 9... Na5 {[%clk 0:04:43.6]}
10. Bc2 {[%clk 0:04:40.6]} 10... c5 {[%clk 0:04:41.9]} 11. d3 {[%clk 0:04:38.1]}
11... Nc6 {[%clk 0:04:37.2]} 12. Nbd2 {[%clk 0:04:37.3]} 12... Bd7 {[%clk
0:04:31.3]} 13. Nf1 {[%clk 0:04:33.4]} 13... Qb6 {[%clk 0:04:30.1]} 14. Ng3
{[%clk 0:04:31.2]} 14... g6 {[%clk 0:04:27.6]} 15. Bh6 {[%clk 0:04:28.5]} 15...
Rfe8 {[%clk 0:04:26.7]} 16. Qd2 {[%clk 0:04:21.2]} 16... Bf8 {[%clk 0:04:25]}
17. Bxf8 {[%clk 0:04:18]} 17... Rxf8 {[%clk 0:04:23.9]} 18. Rad1 {[%clk
0:04:13.1]} 18... Kg7 {[%clk 0:04:18.8]} 19. d4 {[%clk 0:04:03.7]} 19... cxd4
{[%clk 0:04:17.1]} 20. cxd4 {[%clk 0:04:02.3]} 20... exd4 {[%clk 0:04:11.4]} 21.
Nxd4 {[%clk 0:03:59.1]} 21... Ne5 {[%clk 0:04:06.3]} 22. Qg5 {[%clk 0:03:47]}
22... Ne8 {[%clk 0:03:50.3]} 23. Ndf5+ {[%clk 0:03:39.1]} 23... Kg8 {[%clk
0:03:42.3]} 24. Nxd6 {[%clk 0:02:57.3]} 24... f6 {[%clk 0:03:26.7]} 25. Qd2
{[%clk 0:02:48.4]} 25... Rd8 {[%clk 0:03:17.7]} 26. Bb3+ {[%clk 0:02:23]} 26...
Kg7 {[%clk 0:03:14.8]} 27. Qd5 {[%clk 0:02:02.5]} 27... Nc7 {[%clk 0:02:56.8]}
28. Qb7 {[%clk 0:01:50.2]} 28... Qa5 {[%clk 0:02:33.9]} 29. f4 {[%clk
0:01:31.1]} 29... Bc6 {[%clk 0:02:25.8]} 30. Qa7 {[%clk 0:01:18]} 30... Nd7
{[%clk 0:02:00.1]} 31. Qf2 {[%clk 0:00:58.3]} 31... Nb6 {[%clk 0:01:48.6]} 32.
f5 {[%clk 0:00:53.8]} 32... Nd7 {[%clk 0:01:36.4]} 33. fxg6 {[%clk 0:00:47]}
33... hxg6 {[%clk 0:01:35.1]} 34. Ne2 {[%clk 0:00:46]} 34... Ne5 {[%clk
0:01:31.2]} 35. Nf4 {[%clk 0:00:45.1]} 35... Qb4 {[%clk 0:01:13.4]} 36. Rd4
{[%clk 0:00:30.4]} 36... Qc5 {[%clk 0:01:08.8]} 37. Red1 {[%clk 0:00:29.3]}
37... Bxe4 {[%clk 0:01:01.3]} 38. Nxe4 {[%clk 0:00:26.2]} 38... Qe7 {[%clk
0:00:55]} 39. Qg3 {[%clk 0:00:20.5]} 39... Rxd4 {[%clk 0:00:50.7]} 40. Rxd4
{[%clk 0:00:18.8]} 40... Rd8 {[%clk 0:00:47.7]} 41. Rxd8 {[%clk 0:00:17.6]}
41... Qxd8 {[%clk 0:00:46.8]} 42. Nc5 {[%clk 0:00:15.2]} 42... Qd4+ {[%clk
0:00:45.3]} 43. Kh2 {[%clk 0:00:13.6]} 43... Qxc5 {[%clk 0:00:43.4]} 44. Nh5+
{[%clk 0:00:12.3]} 44... Kh6 {[%clk 0:00:38.1]} 45. Nxf6 {[%clk 0:00:12.2]}
45... Kg7 {[%clk 0:00:25.4]} 46. Ng4 {[%clk 0:00:12.1]} 46... Nxg4+ {[%clk
0:00:23.9]} 47. Qxg4 {[%clk 0:00:11.7]} 47... Qd6+ {[%clk 0:00:22.8]} 48. Qg3
{[%clk 0:00:11.6]} 48... Qxg3+ {[%clk 0:00:21.8]} 49. Kxg3 {[%clk 0:00:11.5]}
49... Kf6 {[%clk 0:00:20.7]} 50. Kf4 {[%clk 0:00:11.4]} 50... Ne8 {[%clk
0:00:19.6]} 51. g4 {[%clk 0:00:11.3]} 51... Nd6 {[%clk 0:00:18.8]} 52. Ke3
{[%clk 0:00:10.4]} 52... g5 {[%clk 0:00:17.2]} 53. Kd4 {[%clk 0:00:10.3]} 53...
Ke7 {[%clk 0:00:15.8]} 54. Kc5 {[%clk 0:00:10.2]} 54... Ne4+ {[%clk 0:00:14.2]}
55. Kb6 {[%clk 0:00:10.1]} 55... Nf2 {[%clk 0:00:13.8]} 56. Kxa6 {[%clk
0:00:09.6]} 56... Nxh3 {[%clk 0:00:13.7]} 57. Kxb5 {[%clk 0:00:09.3]} 57... Nf2
{[%clk 0:00:13.1]} 58. a4 {[%clk 0:00:09.2]} 58... Nxg4 {[%clk 0:00:12.3]} 59.
a5 {[%clk 0:00:09.1]} 59... Ne5 {[%clk 0:00:11.5]} 60. a6 {[%clk 0:00:09]} 60...
Nd7 {[%clk 0:00:08.9]} 61. a7 {[%clk 0:00:08.9]} 61... Nb8 {[%clk 0:00:03]} 62.
axb8=Q {[%clk 0:00:07.5]} 62... g4 {[%clk 0:00:01.9]} 63. Qa7+ {[%clk
0:00:07.4]} 63... Kf6 {[%clk 0:00:00.6]} 64. Qg1 {[%clk 0:00:07.3]} 64... Kg5
{[%clk 0:00:00.2]} 65. Kc5 {[%clk 0:00:06.6]} 65... Kh4 {[%clk 0:00:00.1]} 66.
Kd4 {[%clk 0:00:06.5]} 1-0

[Event "Live Chess"]
[Site "Chess.com"]
[Date "2024.06.02"]
[Round "-"]
[White "Mangoalo"]
[Black "CarmelJane"]
[Result "0-1"]
[WhiteElo "1080"]
[BlackElo "2047"]
[TimeControl "300"]
[EndTime "8:04:41 PDT"]
[Termination "CarmelJane won by resignation"]

1. e4 {[%clk 0:04:57]} 1... g6 {[%clk 0:04:58.7]} 2. Nf3 {[%clk 0:04:56.9]} 2...
Bg7 {[%clk 0:04:58.1]} 3. d4 {[%clk 0:04:55.9]} 3... c5 {[%clk 0:04:56.8]} 4.
Nc3 {[%clk 0:04:51.6]} 4... cxd4 {[%clk 0:04:56.2]} 5. Nxd4 {[%clk 0:04:49.8]}
5... Nc6 {[%clk 0:04:56.1]} 6. Be3 {[%clk 0:04:46.7]} 6... Nf6 {[%clk
0:04:54.3]} 7. Bb5 {[%clk 0:04:45.1]} 7... O-O {[%clk 0:04:52.7]} 8. f4 {[%clk
0:04:43.3]} 8... a6 {[%clk 0:04:49.6]} 9. Bxc6 {[%clk 0:04:38.9]} 9... bxc6
{[%clk 0:04:49.5]} 10. e5 {[%clk 0:04:36.6]} 10... Nd5 {[%clk 0:04:44.4]} 11.
Nxd5 {[%clk 0:04:35.2]} 11... cxd5 {[%clk 0:04:44.3]} 12. O-O {[%clk 0:04:33.2]}
12... a5 {[%clk 0:04:41.5]} 13. a4 {[%clk 0:04:30.7]} 13... Ba6 {[%clk
0:04:40.2]} 14. Rf2 {[%clk 0:04:26]} 14... Rb8 {[%clk 0:04:38.7]} 15. b3 {[%clk
0:04:24.5]} 15... d6 {[%clk 0:04:36.8]} 16. exd6 {[%clk 0:04:21.4]} 16... Qxd6
{[%clk 0:04:35]} 17. f5 {[%clk 0:04:15.7]} 17... Qd7 {[%clk 0:04:10.9]} 18. fxg6
{[%clk 0:04:03.4]} 18... fxg6 {[%clk 0:04:01.4]} 19. Qd2 {[%clk 0:03:59.7]}
19... e5 {[%clk 0:03:57]} 20. Rxf8+ {[%clk 0:03:56.9]} 20... Rxf8 {[%clk
0:03:54.6]} 21. Nf3 {[%clk 0:03:56]} 21... d4 {[%clk 0:03:23.6]} 22. Bg5 {[%clk
0:03:48.1]} 22... Bb7 {[%clk 0:03:10.9]} 23. c4 {[%clk 0:03:45.8]} 23... Qg4
{[%clk 0:03:00.5]} 24. Rf1 {[%clk 0:03:32.6]} 24... Bxf3 {[%clk 0:02:57]} 25.
Be7 {[%clk 0:03:23.5]} 25... Rf7 {[%clk 0:02:48.9]} 26. h3 {[%clk 0:03:18.5]}
26... Qxg2+ {[%clk 0:02:19.6]} 27. Qxg2 {[%clk 0:03:15.8]} 27... Bxg2 {[%clk
0:02:19.2]} 28. Kxg2 {[%clk 0:03:15.7]} 28... Rxe7 {[%clk 0:02:17.9]} 0-1

[Event "Live Chess"]
[Site "Chess.com"]
[Date "2024.06.02"]
[Round "-"]
[White "upoe610"]
[Black "lateforthesky"]
[Result "1-0"]
[WhiteElo "2167"]
[BlackElo "2074"]
[TimeControl "300"]
[EndTime "8:04:48 PDT"]
[Termination "upoe610 won by resignation"]

1. c4 {[%clk 0:04:57.5]} 1... g6 {[%clk 0:04:56.9]} 2. g3 {[%clk 0:04:55.3]}
2... Bg7 {[%clk 0:04:55.9]} 3. Bg2 {[%clk 0:04:54.9]} 3... d6 {[%clk 0:04:54.1]}
4. Nc3 {[%clk 0:04:54.5]} 4... e5 {[%clk 0:04:53.2]} 5. d3 {[%clk 0:04:49.5]}
5... Nf6 {[%clk 0:04:52.1]} 6. Nf3 {[%clk 0:04:48.3]} 6... O-O {[%clk
0:04:50.9]} 7. O-O {[%clk 0:04:47.2]} 7... Nc6 {[%clk 0:04:50]} 8. Rb1 {[%clk
0:04:43.8]} 8... a5 {[%clk 0:04:47.8]} 9. a3 {[%clk 0:04:40.6]} 9... Re8 {[%clk
0:04:47.1]} 10. b4 {[%clk 0:04:38.6]} 10... axb4 {[%clk 0:04:44.8]} 11. axb4
{[%clk 0:04:38.5]} 11... e4 {[%clk 0:04:44.2]} 12. dxe4 {[%clk 0:04:35.8]} 12...
Nxe4 {[%clk 0:04:42.6]} 13. Nxe4 {[%clk 0:04:35.2]} 13... Rxe4 {[%clk
0:04:41.6]} 14. b5 {[%clk 0:04:34.7]} 14... Na5 {[%clk 0:04:38.7]} 15. Nd2
{[%clk 0:04:22.7]} 15... Re8 {[%clk 0:04:35.5]} 16. Bb2 {[%clk 0:04:19.5]} 16...
Bf5 {[%clk 0:04:31.4]} 17. Bxg7 {[%clk 0:04:16.3]} 17... Kxg7 {[%clk 0:04:29.9]}
18. Ra1 {[%clk 0:04:13.5]} 18... c6 {[%clk 0:04:25.7]} 19. e4 {[%clk 0:04:08.7]}
19... Be6 {[%clk 0:04:23.9]} 20. Qc2 {[%clk 0:04:07.3]} 20... Qb6 {[%clk
0:03:57.2]} 21. Rfb1 {[%clk 0:04:03.3]} 21... c5 {[%clk 0:03:46]} 22. Qc3+
{[%clk 0:03:54.2]} 22... f6 {[%clk 0:03:43.1]} 23. f4 {[%clk 0:03:47.2]} 23...
Qc7 {[%clk 0:03:27.5]} 24. b6 {[%clk 0:03:41.8]} 24... Qd7 {[%clk 0:03:22.6]}
25. Rxa5 {[%clk 0:03:39.4]} 25... Rxa5 {[%clk 0:03:20.8]} 26. Qxa5 {[%clk
0:03:38.2]} 1-0

[Event "Live Chess"]
[Site "Chess.com"]
[Date "2024.06.02"]
[Round "-"]
[White "ukraineZelensky"]
[Black "NeilDruggan73"]
[Result "0-1"]
[WhiteElo "1321"]
[BlackElo "1721"]
[TimeControl "300"]
[EndTime "8:04:59 PDT"]
[Termination "NeilDruggan73 won by checkmate"]

1. d4 {[%clk 0:04:57.5]} 1... Nf6 {[%clk 0:04:57.6]} 2. e3 {[%clk 0:04:52.6]}
2... g6 {[%clk 0:04:57.1]} 3. c4 {[%clk 0:04:49.6]} 3... Bg7 {[%clk 0:04:56.8]}
4. Nc3 {[%clk 0:04:47]} 4... d6 {[%clk 0:04:56.5]} 5. h3 {[%clk 0:04:39.3]} 5...
O-O {[%clk 0:04:55.1]} 6. Nf3 {[%clk 0:04:37.3]} 6... b6 {[%clk 0:04:52.9]} 7.
e4 {[%clk 0:04:33.2]} 7... Bb7 {[%clk 0:04:49.9]} 8. Bd3 {[%clk 0:04:30.7]} 8...
Nbd7 {[%clk 0:04:41.7]} 9. O-O {[%clk 0:04:24.3]} 9... c5 {[%clk 0:04:40.5]} 10.
d5 {[%clk 0:04:19]} 10... a6 {[%clk 0:04:33.7]} 11. a4 {[%clk 0:04:12.9]} 11...
Nh5 {[%clk 0:04:32]} 12. Bd2 {[%clk 0:04:03.6]} 12... e5 {[%clk 0:04:30.1]} 13.
b3 {[%clk 0:03:47.5]} 13... f5 {[%clk 0:04:26.2]} 14. exf5 {[%clk 0:03:42.6]}
14... gxf5 {[%clk 0:04:25]} 15. Bb1 {[%clk 0:03:27.4]} 15... Nf4 {[%clk
0:04:14.7]} 16. Bxf4 {[%clk 0:03:24.6]} 16... exf4 {[%clk 0:04:13.5]} 17. Qc2
{[%clk 0:03:09.9]} 17... Qf6 {[%clk 0:04:09.8]} 18. Rc1 {[%clk 0:02:47.4]} 18...
Kh8 {[%clk 0:04:08.5]} 19. Ba2 {[%clk 0:02:43.2]} 19... a5 {[%clk 0:04:04]} 20.
Rab1 {[%clk 0:02:39.8]} 20... Ba6 {[%clk 0:03:55.5]} 21. Nb5 {[%clk 0:02:34.2]}
21... Bxb5 {[%clk 0:03:53.9]} 22. axb5 {[%clk 0:02:30.1]} 22... Rg8 {[%clk
0:03:52.8]} 23. Re1 {[%clk 0:02:14]} 23... Rae8 {[%clk 0:03:46.3]} 24. Rxe8
{[%clk 0:02:03.2]} 24... Rxe8 {[%clk 0:03:43.3]} 25. Qd2 {[%clk 0:01:46.9]}
25... Re4 {[%clk 0:03:29.4]} 26. Re1 {[%clk 0:01:39.9]} 26... Bh6 {[%clk
0:03:26.5]} 27. Bb1 {[%clk 0:01:23.5]} 27... Rxe1+ {[%clk 0:03:20]} 28. Qxe1
{[%clk 0:01:18.2]} 28... Ne5 {[%clk 0:03:16.3]} 29. Nxe5 {[%clk 0:01:14.8]}
29... dxe5 {[%clk 0:03:12.6]} 30. Qc3 {[%clk 0:01:04.2]} 30... Bg7 {[%clk
0:03:04.3]} 31. Qf3 {[%clk 0:01:01]} 31... Qg6 {[%clk 0:02:58]} 32. Kf1 {[%clk
0:00:50]} 32... h6 {[%clk 0:02:47.1]} 33. Bd3 {[%clk 0:00:44.3]} 33... e4 {[%clk
0:02:44.1]} 34. Qxf4 {[%clk 0:00:34.8]} 34... exd3 {[%clk 0:02:41.2]} 35. Qb8+
{[%clk 0:00:31.9]} 35... Kh7 {[%clk 0:02:39.3]} 36. d6 {[%clk 0:00:18.6]} 36...
Qg5 {[%clk 0:02:18.8]} 37. d7 {[%clk 0:00:14.1]} 37... Qc1# {[%clk 0:02:16.3]}
0-1

[Event "Live Chess"]
[Site "Chess.com"]
[Date "2024.06.02"]
[Round "-"]
[White "LL220284LL"]
[Black "Purple1szed"]
[Result "1-0"]
[WhiteElo "2468"]
[BlackElo "2007"]
[TimeControl "300"]
[EndTime "8:05:15 PDT"]
[Termination "LL220284LL won by resignation"]

1. Nf3 {[%clk 0:04:58.7]} 1... Nf6 {[%clk 0:04:56.5]} 2. b3 {[%clk 0:04:56.2]}
2... g6 {[%clk 0:04:54.9]} 3. Bb2 {[%clk 0:04:55]} 3... Bg7 {[%clk 0:04:54.8]}
4. e3 {[%clk 0:04:53.6]} 4... O-O {[%clk 0:04:54.3]} 5. Be2 {[%clk 0:04:53.1]}
5... c5 {[%clk 0:04:53.8]} 6. c4 {[%clk 0:04:52.6]} 6... Nc6 {[%clk 0:04:53.4]}
7. Nc3 {[%clk 0:04:51.5]} 7... e6 {[%clk 0:04:52.7]} 8. O-O {[%clk 0:04:47.8]}
8... d5 {[%clk 0:04:51.8]} 9. cxd5 {[%clk 0:04:47.7]} 9... exd5 {[%clk 0:04:51]}
10. d4 {[%clk 0:04:46.8]} 10... cxd4 {[%clk 0:04:50.3]} 11. Nxd4 {[%clk
0:04:46.7]} 11... Nxd4 {[%clk 0:04:49.3]} 12. Qxd4 {[%clk 0:04:44.7]} 12... Be6
{[%clk 0:04:42.9]} 13. Qd2 {[%clk 0:04:41.5]} 13... Rc8 {[%clk 0:04:37.6]} 14.
Bf3 {[%clk 0:04:39.1]} 14... Qa5 {[%clk 0:04:34.5]} 15. Rfd1 {[%clk 0:04:36.1]}
15... Rfd8 {[%clk 0:04:33.3]} 16. Ne2 {[%clk 0:04:31.1]} 16... Qxd2 {[%clk
0:04:30.2]} 17. Rxd2 {[%clk 0:04:31]} 17... Ne4 {[%clk 0:04:29.1]} 18. Bxe4
{[%clk 0:04:30.1]} 18... dxe4 {[%clk 0:04:27]} 19. Rxd8+ {[%clk 0:04:26.7]}
19... Rxd8 {[%clk 0:04:25.8]} 20. Bxg7 {[%clk 0:04:26.3]} 20... Kxg7 {[%clk
0:04:25.7]} 21. Nd4 {[%clk 0:04:25.1]} 21... Rc8 {[%clk 0:04:18.5]} 22. Rd1
{[%clk 0:04:20.9]} 22... Kf6 {[%clk 0:04:12.2]} 23. h3 {[%clk 0:04:16.3]} 23...
Rc7 {[%clk 0:04:05.9]} 24. Rd2 {[%clk 0:04:15.1]} 24... a6 {[%clk 0:04:03.4]}
25. Kh2 {[%clk 0:04:13.4]} 25... h5 {[%clk 0:04:02.4]} 26. Kg3 {[%clk
0:04:11.5]} 26... g5 {[%clk 0:03:57.7]} 27. h4 {[%clk 0:04:10.5]} 27... b5
{[%clk 0:03:46.3]} 28. hxg5+ {[%clk 0:03:57.6]} 28... Kxg5 {[%clk 0:03:46.2]}
29. Nxe6+ {[%clk 0:03:57.1]} 29... fxe6 {[%clk 0:03:46.1]} 30. Rd6 {[%clk
0:03:56.4]} 30... Rc2 {[%clk 0:03:41.9]} 31. Rxa6 {[%clk 0:03:54.7]} 31... Rb2
{[%clk 0:03:34.7]} 32. Rxe6 {[%clk 0:03:51.5]} 32... Rxa2 {[%clk 0:03:33.5]} 33.
Rxe4 {[%clk 0:03:48.8]} 1-0